lending/lending_fUSD_20250808
["ID","MTS","AMOUNT","RATE_DAILY","PERIOD"]
[378035314,1754674386148,-3221.54,0.0002305,2]
[378035315,1754674386157,-400.0,0.0002305,2]
[378035316,1754674386167,-2686.59,0.0002305,2]
[378035317,1754674386177,-2767.77,0.0002305,2]
[378035318,1754674386186,-4079.49,0.0002305,2]
[378035319,1754674386196,-1045.66,0.0002305,2]
[378035320,1754674386205,-3290.29,0.00023051,2]
[378035321,1754674386214,-2369.18,0.00023051,2]
[378035322,1754674386224,-13166.57,0.00023051,2]
[378035323,1754674386233,-1590.7,0.00023051,2]
[378035324,1754674386242,-1258.97,0.00023051,2]
[378035325,1754674386252,-2052.34,0.00023051,2]
[378035326,1754674386262,-508.01,0.00023051,2]
[378035327,1754674386271,-5234.06,0.00023051,2]
[378035328,1754674386281,-400.0,0.00023051,2]
[378035329,1754674386290,-2455.21,0.00023051,2]
[378035330,1754674386299,-1846.96,0.00023051,2]
[378035331,1754674386308,-1243.92,0.00023051,2]
[378035332,1754674386318,-1638.01,0.00023051,2]
[378035333,1754674386327,-1639.76,0.00023051,2]
[378035334,1754674386337,-1386.66,0.00023051,2]
[378035335,1754674386346,-2763.15,0.00023051,2]
[378035336,1754674386355,-3536.52,0.00023051,2]
[378035337,1754674386365,-2140.87,0.00023051,2]
[378035338,1754674386374,-1711.31,0.00023051,2]
[378035339,1754674386383,-449.95,0.00023051,2]
[378035340,1754674386392,-187.68363913,0.000231,2]
[378035341,1754674386402,-184.88188668,0.000231,2]
[378035342,1754674386411,-2000.0,0.00023148,5]
[378035343,1754674386422,-50990.62876672,0.000232,2]
[378035344,1754674386431,-900.0,0.00023288,2]
[378035345,1754674386441,-26376.0603219,0.000233,7]
[378035346,1754674386451,-211.62674257,0.000233,7]
[378035347,1754674386460,-400.0,0.00023322,2]
[378035348,1754674386470,-661.11,0.00023322,2]
[378035349,1754674386479,-2954.91,0.00023322,2]
[378035350,1754674386488,-2275.54,0.00023322,2]
[378035351,1754674386497,-946.48,0.00023322,2]
[378035352,1754674386506,-7691.76,0.00023322,2]
[378035353,1754674386516,-848.32,0.00023322,2]
[378035354,1754674386526,-1032.75,0.00023322,2]
[378035355,1754674386535,-1855.93,0.00023322,2]
[378035356,1754674386544,-600.19,0.00023322,2]
[378035357,1754674386554,-675.93,0.00023322,2]
[378035358,1754674386563,-5291.16,0.00023322,2]
[378035359,1754674386572,-3569.89,0.00023322,2]
[378035360,1754674386581,-2731.24,0.00023322,2]
[378035361,1754674386590,-643.22,0.00023322,2]
[378035362,1754674386599,-1935.23,0.00023322,2]
[378035363,1754674386609,-821.85,0.00023322,2]
[378035364,1754674386618,-774.94,0.00023322,2]
[378035365,1754674386627,-538.44,0.00023322,2]
[378035366,1754674386637,-447.97,0.00023322,2]
[378035367,1754674386647,-947.0,0.00023323,2]
[378035368,1754674386657,-1798.0,0.00023323,2]
[378035369,1754674386669,-977.0,0.00023323,2]
[378035370,1754674386679,-155.776285,0.00023323,2]
[378035371,1754674386689,-156.799685,0.00023323,2]
[378035372,1754674386701,-183.659282,0.00023323,2]
[378035373,1754674386711,-2162.28,0.00023323,2]
[378035374,1754674386723,-788.52,0.00023323,2]
[378035375,1754674386734,-606.57,0.00023323,2]
[378035376,1754674386744,-691.64,0.00023323,2]
[378035377,1754674386754,-504.23,0.00023323,2]
[378035378,1754674386765,-672.8,0.00023323,2]
[378035379,1754674386774,-711.68,0.00023323,2]
[378035380,1754674386785,-767.72,0.00023323,2]
[378035381,1754674386794,-692.39,0.00023323,2]
[378035382,1754674386803,-411.37,0.00023323,2]
[378035383,1754674386813,-460.18,0.00023323,2]
[378035384,1754674386822,-680.33,0.00023323,2]
[378035385,1754674386832,-418.64,0.00023323,2]
[378035386,1754674386841,-400.0,0.00023323,2]
[378035387,1754674386851,-1053.65,0.00023323,2]
[378035388,1754674386860,-591.98,0.00023323,2]
[378035389,1754674386869,-400.0,0.00023323,2]
[378035390,1754674386879,-400.0,0.00023323,2]
[378035391,1754674386889,-400.0,0.00023323,2]
[378035392,1754674386899,-820.42,0.00023323,2]
[378035393,1754674386908,-540.05,0.00023323,2]
[378035394,1754674386918,-444.75,0.00023323,2]
[378035395,1754674386927,-1065.2,0.00023323,2]
[378035396,1754674386936,-475.1,0.00023323,2]
[378035397,1754674386947,-663.95,0.00023323,2]
[378035398,1754674386959,-664.58,0.00023323,2]
[378035399,1754674386969,-552.2,0.00023323,2]
[378035400,1754674386982,-795.59,0.00023323,2]
[378035401,1754674386993,-1009.8,0.00023323,2]
[378035402,1754674387003,-400.0,0.00023323,2]
[378035403,1754674387014,-400.0,0.00023323,2]
[378035404,1754674387024,-758.91,0.00023323,2]
[378035405,1754674387033,-405.9,0.00023323,2]
[378035406,1754674387042,-794.09,0.00023323,2]
[378035407,1754674387051,-860.42,0.00023323,2]
[378035408,1754674387061,-497.38,0.00023323,2]
[378035409,1754674387071,-400.0,0.00023323,2]
[378035410,1754674387080,-675.98,0.00023323,2]
[378035411,1754674387089,-400.0,0.00023323,2]
[378035412,1754674387100,-1322.96,0.00023323,2]
[378035413,1754674387111,-515.94,0.00023323,2]
[378035414,1754674387121,-492.09,0.00023323,2]
[378035415,1754674387130,-1269.65,0.00023323,2]
[378035416,1754674387140,-1150.11,0.00023323,2]
[378035417,1754674387150,-729.76,0.00023323,2]
[378035418,1754674387163,-786.33,0.00023323,2]
[378035419,1754674387172,-400.0,0.00023323,2]
[378035420,1754674387182,-933.94,0.00023323,2]
[378035421,1754674387192,-1309.0,0.00023323,2]
[378035422,1754674387201,-630.93,0.00023323,2]
[378035423,1754674387210,-1106.53,0.00023323,2]
[378035424,1754674387220,-1201.36,0.00023323,2]
[378035425,1754674387229,-400.0,0.00023323,2]
[378035426,1754674387239,-623.4,0.00023323,2]
[378035427,1754674387248,-948.04,0.00023323,2]
[378035428,1754674387258,-1232.12,0.00023323,2]
[378035429,1754674387271,-501.95,0.00023323,2]
[378035430,1754674387280,-400.0,0.00023323,2]
[378035431,1754674387291,-1029.5,0.00023323,2]
[378035432,1754674387300,-400.0,0.00023323,2]
[378035433,1754674387310,-1075.7,0.00023323,2]
[378035434,1754674387322,-1017.42,0.00023323,2]
[378035435,1754674387331,-467.67,0.00023323,2]
[378035436,1754674387340,-1552.35,0.00023323,2]
[378035437,1754674387350,-743.32,0.00023323,2]
[378035438,1754674387359,-466.11,0.00023323,2]
[378035439,1754674387368,-496.93,0.00023323,2]
[378035440,1754674387378,-302.6431072,0.00023323,2]
[378035441,1754674387387,-400.0,0.00023323,2]
[378035442,1754674387396,-1260.4,0.00023323,2]
[378035443,1754674387406,-470.18,0.00023323,2]
[378035444,1754674387415,-400.0,0.00023323,2]
[378035445,1754674387424,-2588.08,0.00023323,2]
[378035446,1754674387433,-641.02,0.00023323,2]
[378035447,1754674387442,-400.0,0.00023323,2]
[378035448,1754674387452,-3797.91,0.00023323,2]
[378035449,1754674387462,-1241.75,0.00023323,2]
[378035450,1754674387471,-1052.14,0.00023323,2]
[378035451,1754674387481,-889.41,0.00023323,2]
[378035452,1754674387492,-739.75,0.00023323,2]
[378035453,1754674387502,-1630.68,0.00023323,2]
[378035454,1754674387514,-3365.51,0.00023323,2]
[378035455,1754674387523,-1099.06,0.00023323,2]
[378035456,1754674387533,-2289.35,0.00023323,2]
[378035457,1754674387542,-1124.14,0.00023323,2]
[378035458,1754674387552,-1750.29,0.00023323,2]
[378035459,1754674387562,-838.76,0.00023323,2]
[378035460,1754674387572,-1564.85,0.00023323,2]
[378035461,1754674387582,-752.21,0.00023323,2]
[378035462,1754674387592,-1259.02,0.00023323,2]
[378035463,1754674387601,-1360.45,0.00023323,2]
[378035464,1754674387610,-400.0,0.00023323,2]
[378035465,1754674387619,-400.0,0.00023323,2]
[378035466,1754674387628,-457.11,0.00023323,2]
[378035467,1754674387638,-447.46,0.00023323,2]
[378035468,1754674387647,-907.31,0.00023323,2]
[378035469,1754674387657,-635.96,0.00023323,2]
[378035470,1754674387667,-516.43,0.00023323,2]
[378035471,1754674387676,-841.87,0.00023323,2]
[378035472,1754674387686,-2511.44,0.00023323,2]
[378035473,1754674387695,-375.75353703,0.00023323,2]
[378035474,1754674387705,-400.0,0.00023323,2]
[378035475,1754674387715,-909.41,0.00023323,2]
[378035476,1754674387724,-1757.88,0.00023323,2]
[378035477,1754674387733,-633.54,0.00023323,2]
[378035478,1754674387743,-400.0,0.00023323,2]
[378035479,1754674387753,-748.76,0.00023323,2]
[378035480,1754674387763,-3698.85,0.00023323,2]
[378035481,1754674387772,-1660.57,0.00023323,2]
[378035482,1754674387782,-466.12,0.00023323,2]
[378035483,1754674387792,-2130.8,0.00023323,2]
[378035484,1754674387802,-724.03,0.00023323,2]
[378035485,1754674387811,-420.45,0.00023323,2]
[378035486,1754674387821,-1000.99,0.00023323,2]
[378035487,1754674387831,-956.66,0.00023323,2]
[378035488,1754674387840,-825.21,0.00023323,2]
[378035489,1754674387849,-1301.7,0.00023323,2]
[378035490,1754674387859,-400.0,0.00023323,2]
[378035491,1754674387868,-1094.31,0.00023323,2]
[378035492,1754674387878,-815.06,0.00023323,2]
[378035493,1754674387887,-498.58,0.00023323,2]
[378035494,1754674387897,-1195.76,0.00023323,2]
[378035495,1754674387907,-442.27,0.00023323,2]
[378035496,1754674387917,-552.06,0.00023323,2]
[378035497,1754674387926,-484.27,0.00023323,2]
[378035498,1754674387936,-624.41,0.00023323,2]
[378035499,1754674387945,-844.68,0.00023323,2]
[378035500,1754674387955,-440.75,0.00023323,2]
[378035501,1754674387964,-2556.32,0.00023323,2]
[378035502,1754674387974,-1182.8,0.00023323,2]
[378035503,1754674387984,-1893.37,0.00023323,2]
[378035504,1754674387994,-524.52,0.00023323,2]
[378035505,1754674388003,-520.64,0.00023323,2]
[378035506,1754674388015,-3101.03,0.00023323,2]
[378035507,1754674388024,-616.08,0.00023323,2]
[378035508,1754674388033,-732.88,0.00023323,2]
[378035509,1754674388043,-856.38,0.00023323,2]
[378035510,1754674388052,-4832.78,0.00023323,2]
[378035511,1754674388063,-627.0,0.00023323,2]
[378035512,1754674388073,-952.86,0.00023323,2]
[378035513,1754674388083,-480.32,0.00023323,2]
[378035514,1754674388094,-400.0,0.00023323,2]
[378035515,1754674388106,-3627.65,0.00023323,2]
[378035516,1754674388116,-400.0,0.00023323,2]
[378035517,1754674388126,-1841.68,0.00023323,2]
[378035518,1754674388135,-803.51,0.00023323,2]
[378035519,1754674388145,-429.23,0.00023323,2]
[378035520,1754674388154,-1163.42,0.00023323,2]
[378035521,1754674388163,-781.89,0.00023323,2]
[378035522,1754674388173,-585.49,0.00023323,2]
[378035523,1754674388184,-467.89,0.00023323,2]
[378035524,1754674388193,-784.71,0.00023323,2]
[378035525,1754674388202,-971.72,0.00023323,2]
[378035526,1754674388212,-842.16,0.00023323,2]
[378035527,1754674388221,-1364.1,0.00023323,2]
[378035528,1754674388230,-437.29,0.00023323,2]
[378035529,1754674388239,-498.13,0.00023323,2]
[378035530,1754674388248,-4194.96,0.00023323,2]
[378035531,1754674388257,-482.49,0.00023323,2]
[378035532,1754674388267,-932.41,0.00023323,2]
[378035533,1754674388276,-400.0,0.00023323,2]
[378035534,1754674388286,-3720.86,0.00023323,2]
[378035535,1754674388295,-467.73,0.00023323,2]
[378035536,1754674388307,-694.04,0.00023323,2]
[378035537,1754674388320,-785.65,0.00023323,2]
[378035538,1754674388333,-1073.17,0.00023323,2]
[378035539,1754674388345,-2564.99,0.00023323,2]
[378035540,1754674388357,-1271.83,0.00023323,2]
[378035541,1754674388372,-695.37,0.00023323,2]
[378035542,1754674388388,-561.21,0.00023323,2]
[378035543,1754674388398,-379.69849792,0.00023323,2]
[378035544,1754674388408,-501.58,0.00023323,2]
[378035545,1754674388417,-1291.31,0.00023323,2]
[378035546,1754674388427,-400.0,0.00023323,2]
[378035547,1754674388436,-1430.86,0.00023323,2]
[378035548,1754674388447,-3151.61,0.00023323,2]
[378035549,1754674388456,-836.4,0.00023323,2]
[378035550,1754674388466,-850.6,0.00023323,2]
[378035551,1754674388476,-421.02,0.00023323,2]
[378035552,1754674388485,-400.0,0.00023323,2]
[378035553,1754674388494,-2829.87,0.00023323,2]
[378035554,1754674388503,-3147.45,0.00023323,2]
[378035555,1754674388514,-2412.01,0.00023323,2]
[378035556,1754674388523,-3174.96,0.00023323,2]
[378035557,1754674388533,-475.15,0.00023324,2]
[378035558,1754674388543,-400.0,0.00023324,2]
[378035559,1754674388552,-400.0,0.00023324,2]
[378035560,1754674388561,-400.0,0.00023324,2]
[378035561,1754674388570,-400.0,0.00023324,2]
[378035562,1754674388580,-613.14,0.00023324,2]
[378035563,1754674388590,-400.0,0.00023324,2]
[378035564,1754674388599,-487.53,0.00023324,2]
[378035565,1754674388609,-400.0,0.00023324,2]
[378035566,1754674388618,-470.26,0.00023324,2]
[378035567,1754674388627,-400.0,0.00023324,2]
[378035568,1754674388636,-400.0,0.00023324,2]
[378035569,1754674388646,-462.27,0.00023324,2]
[378035570,1754674388655,-580.1,0.00023324,2]
[378035571,1754674388665,-400.0,0.00023324,2]
[378035572,1754674388675,-479.7,0.00023324,2]
[378035573,1754674388685,-568.03,0.00023324,2]
[378035574,1754674388694,-400.0,0.00023324,2]
[378035575,1754674388704,-421.44,0.00023324,2]
[378035576,1754674388714,-418.64,0.00023324,2]
[378035577,1754674388725,-504.49,0.00023324,2]
[378035578,1754674388734,-700.9,0.00023324,2]
[378035579,1754674388744,-520.77,0.00023324,2]
[378035580,1754674388753,-182.5746931,0.00023324,2]
[378035581,1754674388764,-192.46234767,0.00023324,2]
[378035582,1754674388773,-484.85,0.00023324,2]
[378035583,1754674388783,-432.17,0.00023324,2]
[378035584,1754674388792,-269.77215266,0.00023324,2]
[378035585,1754674388802,-1178.17,0.00023324,2]
[378035586,1754674388814,-456.42,0.00023324,2]
[378035587,1754674388826,-400.0,0.00023324,2]
[378035588,1754674388838,-534.77,0.00023324,2]
[378035589,1754674388858,-400.0,0.00023324,2]
[378035590,1754674388877,-435.31,0.00023324,2]
[378035591,1754674388887,-4517.84,0.00023324,2]
[378035592,1754674388897,-477.72,0.00023324,2]
[378035593,1754674388907,-400.0,0.00023324,2]
[378035594,1754674388916,-400.0,0.00023324,2]
[378035595,1754674388926,-4062.08,0.00023324,2]
[378035596,1754674388935,-400.0,0.00023324,2]
[378035597,1754674388944,-735.5,0.00023324,2]
[378035598,1754674388953,-1368.24,0.00023324,2]
[378035599,1754674388964,-400.0,0.00023324,2]
[378035600,1754674388973,-400.0,0.00023324,2]
[378035601,1754674388983,-1187.72,0.00023324,2]
[378035602,1754674388992,-450.77,0.00023324,2]
[378035603,1754674389001,-400.0,0.00023324,2]
[378035604,1754674389010,-400.0,0.00023324,2]
[378035605,1754674389022,-1471.83,0.00023324,2]
[378035606,1754674389031,-557.2,0.00023324,2]
[378035607,1754674389040,-400.0,0.00023324,2]
[378035608,1754674389051,-436.5,0.00023324,2]
[378035609,1754674389062,-1359.72,0.00023324,2]
[378035610,1754674389073,-439.47,0.00023324,2]
[378035611,1754674389085,-400.0,0.00023324,2]
[378035612,1754674389096,-1098.38,0.00023324,2]
[378035613,1754674389106,-493.47,0.00023324,2]
[378035614,1754674389116,-505.49,0.00023324,2]
[378035615,1754674389125,-412.55,0.00023324,2]
[378035616,1754674389134,-400.0,0.00023324,2]
[378035617,1754674389143,-496.49,0.00023324,2]
[378035618,1754674389153,-808.39,0.00023324,2]
[378035619,1754674389162,-400.0,0.00023324,2]
[378035620,1754674389172,-234.0974773,0.00023324,2]
[378035621,1754674389182,-485.06,0.00023324,2]
[378035622,1754674389192,-1155.05,0.00023324,2]
[378035623,1754674389201,-521.07,0.00023324,2]
[378035624,1754674389210,-643.05,0.00023324,2]
[378035625,1754674389220,-489.19,0.00023324,2]
[378035626,1754674389233,-760.76,0.00023324,2]
[378035627,1754674389243,-576.62,0.00023324,2]
[378035628,1754674389252,-437.71,0.00023324,2]
[378035629,1754674389262,-704.59,0.00023324,2]
[378035630,1754674389272,-919.49,0.00023324,2]
[378035631,1754674389281,-1259.56,0.00023324,2]
[378035632,1754674389290,-508.27,0.00023324,2]
[378035633,1754674389299,-400.0,0.00023324,2]
[378035634,1754674389532,-1124.56,0.00023324,2]
[378035635,1754674389549,-424.0,0.00023324,2]
[378035636,1754674389559,-2507.35,0.00023324,2]
[378035637,1754674389569,-1219.23,0.00023324,2]
[378035638,1754674389579,-400.0,0.00023324,2]
[378035639,1754674389588,-738.95,0.00023324,2]
[378035640,1754674389597,-739.75,0.00023324,2]
[378035641,1754674389607,-429.41,0.00023324,2]
[378035642,1754674389617,-408.09,0.00023324,2]
[378035643,1754674389627,-400.0,0.00023324,2]
[378035644,1754674389637,-22590.06,0.00023324,2]
[378035645,1754674389646,-444.79,0.00023324,2]
[378035646,1754674389656,-1009.83,0.00023324,2]
[378035647,1754674389666,-612.57,0.00023324,2]
[378035648,1754674389675,-400.0,0.00023324,2]
[378035649,1754674389686,-412.85,0.00023324,2]
[378035650,1754674389695,-284.74569509,0.00023324,2]
[378035651,1754674389705,-1019.52,0.00023324,2]
[378035652,1754674389715,-602.24,0.00023324,2]
[378035653,1754674389725,-702.83,0.00023324,2]
[378035654,1754674389735,-400.0,0.00023324,2]
[378035655,1754674389744,-401.02,0.00023324,2]
[378035656,1754674389753,-480.03,0.00023324,2]
[378035657,1754674389765,-414.37,0.00023324,2]
[378035658,1754674389775,-400.0,0.00023324,2]
[378035659,1754674389784,-420.84,0.00023324,2]
[378035660,1754674389794,-469.13,0.00023324,2]
[378035661,1754674389804,-1156.43,0.00023324,2]
[378035662,1754674389814,-1173.27,0.00023324,2]
[378035663,1754674389825,-414.41,0.00023324,2]
[378035664,1754674389838,-2082.95,0.00023324,2]
[378035665,1754674389850,-400.0,0.00023324,2]
[378035666,1754674389864,-1355.51,0.00023324,2]
[378035667,1754674389874,-400.0,0.00023324,2]
[378035668,1754674389885,-400.0,0.00023324,2]
[378035669,1754674389896,-712.97,0.00023324,2]
[378035670,1754674389908,-1433.19,0.00023324,2]
[378035671,1754674389918,-1279.98,0.00023324,2]
[378035672,1754674389927,-210.43938832,0.00023324,2]
[378035673,1754674389937,-2544.43,0.00023324,2]
[378035674,1754674389946,-545.33,0.00023324,2]
[378035675,1754674389955,-3304.91,0.00023324,2]
[378035676,1754674389964,-1361.67,0.00023324,2]
[378035677,1754674389974,-680.15,0.00023324,2]
[378035678,1754674389985,-446.42,0.00023324,2]
[378035679,1754674389995,-1015.86,0.00023324,2]
[378035680,1754674390005,-400.0,0.00023324,2]
[378035681,1754674390016,-401.51985897,0.00023324,2]
[378035682,1754674390026,-6584.79,0.00023324,2]
[378035683,1754674390035,-472.84,0.00023324,2]
[378035684,1754674390045,-281.50497991,0.00023324,2]
[378035685,1754674390054,-645.58,0.00023324,2]
[378035686,1754674390064,-434.44,0.00023324,2]
[378035687,1754674390075,-510.44,0.00023324,2]
[378035688,1754674390084,-400.0,0.00023324,2]
[378035689,1754674390094,-637.96,0.00023324,2]
[378035690,1754674390108,-4087.5,0.00023324,2]
[378035691,1754674390118,-400.0,0.00023324,2]
[378035692,1754674390129,-1167.59,0.00023324,2]
[378035693,1754674390139,-423.67,0.00023324,2]
[378035694,1754674390149,-839.14,0.00023324,2]
[378035695,1754674390161,-471.69300113,0.00023324,2]
[378035696,1754674390171,-1923.32,0.00023324,2]
[378035697,1754674390181,-2534.72,0.00023324,2]
[378035698,1754674390191,-3221.54,0.00023324,2]
[378035699,1754674390202,-400.0,0.00023324,2]
[378035700,1754674390212,-2686.59,0.00023324,2]
[378035701,1754674390222,-2767.77,0.00023324,2]
[378035702,1754674390233,-4079.49,0.00023324,2]
[378035703,1754674390242,-1045.66,0.00023324,2]
[378035704,1754674390253,-3290.29,0.00023325,2]
[378035705,1754674390263,-2369.18,0.00023325,2]
[378035706,1754674390274,-13166.57,0.00023325,2]
[378035707,1754674390283,-1590.7,0.00023325,2]
[378035708,1754674390295,-1258.97,0.00023325,2]
[378035709,1754674390305,-2052.34,0.00023325,2]
[378035710,1754674390316,-508.01,0.00023325,2]
[378035711,1754674390326,-5234.06,0.00023325,2]
[378035712,1754674390337,-400.0,0.00023325,2]
[378035713,1754674390347,-2455.21,0.00023325,2]
[378035714,1754674390356,-1846.96,0.00023325,2]
[378035715,1754674390366,-1243.92,0.00023325,2]
[378035716,1754674390375,-1638.01,0.00023325,2]
[378035717,1754674390385,-1639.76,0.00023325,2]
[378035718,1754674390394,-1386.66,0.00023325,2]
[378035719,1754674390404,-2763.15,0.00023325,2]
[378035720,1754674390414,-3536.52,0.00023325,2]
[378035721,1754674390423,-2140.87,0.00023325,2]
[378035722,1754674390432,-1711.31,0.00023325,2]
[378035723,1754674390442,-449.95,0.00023325,2]
[378035724,1754674390451,-1195.85108587,0.00023427,2]
[378035725,1754674390460,-1195.85108587,0.00023427,2]
[378035726,1754674390469,-200.0,0.000235,2]
[378035727,1754674390479,-1119.57327,0.0002353,2]
[378035728,1754674390489,-153.56156989,0.00023562,2]
[378035729,1754674390498,-454.92834892,0.00023562,2]
[378035730,1754674390507,-201.93286099,0.00023562,2]
[378035731,1754674390517,-400.0,0.00023596,2]
[378035732,1754674390527,-661.11,0.00023596,2]
[378035733,1754674390536,-2954.91,0.00023596,2]
[378035734,1754674390545,-2275.54,0.00023596,2]
[378035735,1754674390555,-946.48,0.00023596,2]
[378035736,1754674390564,-7691.76,0.00023596,2]
[378035737,1754674390574,-848.32,0.00023596,2]
[378035738,1754674390584,-1032.75,0.00023596,2]
[378035739,1754674390593,-1855.93,0.00023596,2]
[378035740,1754674390602,-600.19,0.00023596,2]
[378035741,1754674390611,-675.93,0.00023596,2]
[378035742,1754674390620,-5291.16,0.00023596,2]
[378035743,1754674390630,-3569.89,0.00023596,2]
[378035744,1754674390640,-2731.24,0.00023596,2]
[378035745,1754674390649,-643.22,0.00023596,2]
[378035746,1754674390658,-1935.23,0.00023596,2]
[378035747,1754674390668,-821.85,0.00023596,2]
[378035748,1754674390677,-774.94,0.00023596,2]
[378035749,1754674390688,-538.44,0.00023596,2]
[378035750,1754674390697,-447.97,0.00023596,2]
[378035751,1754674390707,-947.0,0.00023596,2]
[378035752,1754674390717,-1798.0,0.00023596,2]
[378035753,1754674390726,-977.0,0.00023596,2]
[378035754,1754674390736,-183.659282,0.00023597,2]
[378035755,1754674390745,-2162.28,0.00023597,2]
[378035756,1754674390755,-788.52,0.00023597,2]
[378035757,1754674390765,-606.57,0.00023597,2]
[378035758,1754674390774,-691.64,0.00023597,2]
[378035759,1754674390783,-504.23,0.00023597,2]
[378035760,1754674390793,-672.8,0.00023597,2]
[378035761,1754674390802,-711.68,0.00023597,2]
[378035762,1754674390811,-767.72,0.00023597,2]
[378035763,1754674390820,-692.39,0.00023597,2]
[378035764,1754674390830,-411.37,0.00023597,2]
[378035765,1754674390839,-460.18,0.00023597,2]
[378035766,1754674390849,-680.33,0.00023597,2]
[378035767,1754674390859,-418.64,0.00023597,2]
[378035768,1754674390868,-400.0,0.00023597,2]
[378035769,1754674390878,-1053.65,0.00023597,2]
[378035770,1754674390887,-591.98,0.00023597,2]
[378035771,1754674390896,-400.0,0.00023597,2]
[378035772,1754674390906,-400.0,0.00023597,2]
[378035773,1754674390915,-188.06532905,0.00023597,2]
[378035774,1754674390924,-820.42,0.00023597,2]
[378035775,1754674390934,-540.05,0.00023597,2]
[378035776,1754674390943,-444.75,0.00023597,2]
[378035777,1754674390952,-1065.2,0.00023597,2]
[378035778,1754674390961,-475.1,0.00023597,2]
[378035779,1754674390971,-663.95,0.00023597,2]
[378035780,1754674390980,-664.58,0.00023597,2]
[378035781,1754674390989,-552.2,0.00023597,2]
[378035782,1754674390998,-795.59,0.00023597,2]
[378035783,1754674391007,-1009.8,0.00023597,2]
[378035784,1754674391018,-400.0,0.00023597,2]
[378035785,1754674391027,-400.0,0.00023597,2]
[378035786,1754674391037,-758.91,0.00023597,2]
[378035787,1754674391046,-405.9,0.00023597,2]
[378035788,1754674391055,-794.09,0.00023597,2]
[378035789,1754674391064,-860.42,0.00023597,2]
[378035790,1754674391075,-497.38,0.00023597,2]
[378035791,1754674391085,-400.0,0.00023597,2]
[378035792,1754674391097,-675.98,0.00023597,2]
[378035793,1754674391111,-400.0,0.00023597,2]
[378035794,1754674391121,-1322.96,0.00023597,2]
[378035795,1754674391131,-515.94,0.00023597,2]
[378035796,1754674391140,-492.09,0.00023597,2]
[378035797,1754674391151,-1269.65,0.00023597,2]
[378035798,1754674391160,-1150.11,0.00023597,2]
[378035799,1754674391170,-729.76,0.00023597,2]
[378035800,1754674391180,-786.33,0.00023597,2]
[378035801,1754674391189,-400.0,0.00023597,2]
[378035802,1754674391201,-933.94,0.00023597,2]
[378035803,1754674391211,-1309.0,0.00023597,2]
[378035804,1754674391222,-630.93,0.00023597,2]
[378035805,1754674391231,-1106.53,0.00023597,2]
[378035806,1754674391240,-1201.36,0.00023597,2]
[378035807,1754674391250,-400.0,0.00023597,2]
[378035808,1754674391259,-623.4,0.00023597,2]
[378035809,1754674391269,-948.04,0.00023597,2]
[378035810,1754674391278,-1232.12,0.00023597,2]
[378035811,1754674391289,-501.95,0.00023597,2]
[378035812,1754674391299,-400.0,0.00023597,2]
[378035813,1754674391309,-1029.5,0.00023597,2]